[Event "Israeli Championship 2022"]
[Site "Yosiah Arad"]
[Date "2022.12.12"]
[Round "8.2"]
[White "Boruchovsky, Avital"]
[Black "Erenberg, Ariel"]
[Result "1-0"]
[ECO "B12"]
[WhiteElo "2552"]
[BlackElo "2514"]
[Annotator "TA"]
[PlyCount "113"]
[EventDate "2022.12.05"]
[EventType "swiss"]
[EventCountry "ISR"]
[SourceTitle "playchess.com"]
[Source "ChessBase"]
[SourceQuality "1"]
[TimeControl "40/5400+30:1800+30"]

{[%evp 14,113,12,0,49,43,44,45,66,43,44,0,0,0,0,0,0,0,0,0,32,9,17,0,0,-56,-49,-57,-58,-60,-8,-58,0,0,0,0,33,46,44,46,53,10,248,0,139,135,172,0,0,0,0,0,0,0,0,0,0,0,983,338,963,876,898,955,890,774,708,539,1204,1115,1124,1080,1036,897,2016,3637,1803,2282,2457,1349,1512,2541,4661,3020,2351,1321,29968,12633,10253,10147,11368,11520,2626,2446,29983,29984,29983,29984,29986,29987,29986,29985]} 1. e4 {[%emt 0:00:07]} c6 {[%emt 0:01:26]} 2. d4 {[%emt 0:00:08]} d5 {[%emt 0:00:05]} 3. e5 {[%emt 0:00:05]} Bf5 {[%emt 0:00:47]} 4. h4 {[%emt 0:00:12]} h5 {[%emt 0:00:42]} 5. c4 {[%emt 0:00:09]} dxc4 {[%emt 0:00:45]} 6. Bxc4 {[%emt 0:01:27]} e6 {[%emt 0:00:36]} 7. Nc3 {[%emt 0:00:21]} Nd7 {[%emt 0:00:51]} 8. Nge2 {[%emt 0:01:35]} Nh6 {[%emt 0:01:33] B12: Caro-Kann: Advance Variation.} (8... Be7 $11 {might be stronger.}) 9. Bg5 $14 {[%emt 0:04:29]} Be7 {[%emt 0:09:03]} 10. Qd2 {[%emt 0:01:33] [#]} a6 $146 {[%emt 0:22:41] White is slightly better.} ({Predecessor:} 10... Nb6 11. Bb3 a5 12. a3 a4 13. Ba2 Nd5 14. Ng3 Bg6 15. Nge4 Nxc3 16. Nd6+ Kf8 17. Bxe7+ Qxe7 18. Qxc3 {½-½ (51) Woolcock,C (1894)-Paul,N (1875) Coventry 2013}) 11. Rd1 {[%emt 0:08:48]} Nb6 {[%emt 0:11:41]} 12. Bd3 {[%emt 0:10:01]} Bxd3 {[%emt 0:08:29]} 13. Qxd3 {[%emt 0:01:02]} Nf5 {[%emt 0:00:10]} 14. Ng3 {[%emt 0:07:56]} Nxh4 {[%emt 0:05:20]} 15. Bxh4 {[%emt 0:03:42]} Bxh4 {[%emt 0:00:12]} 16. Nce4 {[%emt 0:00:03] Threatens to win with Nd6+.} Nc8 {[%emt 0:10:11] Prevents Nd6+.} 17. Qb3 {[%emt 0:14:08][%mdl 1024] White has compensation.} (17. Qe3 $5 {[%cal Re3f4]}) 17... Ra7 {[%emt 0:07:35]} 18. Qf3 {[%emt 0:06:39]} g6 {[%emt 0:04:42]} 19. Nf1 {[%emt 0:04:27]} (19. Rxh4 $11 Qxh4 20. Nf6+ Kf8 21. Ke2) 19... Be7 $15 {[%emt 0:00:35]} 20. a3 {[%emt 0:01:09]} Nb6 {[%emt 0:01:51]} 21. Ne3 {[%emt 0:00:15]} Ra8 {[%emt 0:01:43]} (21... Kf8 $15) 22. Rh3 {[%emt 0:08:44]} ({Better is} 22. g4 $1 $11) 22... a5 {[%emt 0:00:07]} (22... Rh7 $15) 23. g4 $11 {[%emt 0:02:43][%cal Rg4h5]} h4 {[%emt 0:00:05]} 24. g5 $1 {[%emt 0:00:03]} a4 {[%emt 0:01:05]} (24... Bxg5 25. Nd6+ Kd7 26. Nxf7 $16 (26. Qxf7+ Qe7 $11)) 25. Qg4 {[%emt 0:00:59]} (25. Ng4 Nd5 $15) 25... Ra5 {[%emt 0:02:44]} 26. Rxh4 {[%emt 0:02:27]} Kd7 {[%emt 0:00:11]} 27. Rh6 {[%emt 0:02:20]} Rb5 $2 {[%emt 0:01:04]} (27... Rf8 $11 {and Black is okay.}) 28. Rd2 $2 {[%emt 0:01:39]} (28. Nc3 $1 $18 {[%cal Rc3b5]} Rd5 29. f4) 28... Nd5 {[%emt 0:04:37]} (28... Kc7 $11) 29. Qf3 $1 $16 {[%emt 0:01:51] White is more active.} Qf8 {[%emt 0:01:59]} 30. Ng4 {[%emt 0:03:24] Pair of Knights!} (30. Rxh8 Qxh8 31. Nxd5 (31. Qxf7 $2 Qh1+ 32. Ke2 Qxe4 $19) 31... cxd5 $11) ({White should play} 30. Qh1 $1 $18 Rg8 31. Nc4) 30... Bxg5 $1 $11 {[%emt 0:01:54]} 31. Rxh8 {[%emt 0:08:28]} Bxd2+ {[%emt 0:00:01]} 32. Kxd2 {[%emt 0:00:07] Really sharp!} Qxh8 {[%emt 0:00:02]} 33. Qxf7+ {[%emt 0:00:05]} Kd8 {[%emt 0:01:05] Hoping for ...Qh1.} 34. Ngf6 {[%emt 0:00:03]} Nxf6 {[%emt 0:00:56]} 35. exf6 {[%emt 0:00:18][%mdl 4096] Endgame KQR-KQN} Qh2 $2 {[%emt 0:00:37][%mdl 8192] Black is on the road to losing.} (35... Qe8 $2 36. Qg7 (36. Qxe8+ Kxe8 37. Nd6+ Kf8 $11) 36... Qd7 37. f7 $18) (35... Rxb2+ $11 36. Kc1 (36. Kc3 Rb3+ 37. Kc2 Qh4 $11) 36... Rb3 37. Qe7+ Kc8 38. Qxe6+ Kc7 39. Qe5+ Kb6) 36. Qe7+ $18 {[%emt 0:04:13]} (36. Qxg6 $2 Rxb2+ 37. Kc1 Re2 $19) 36... Kc8 {[%emt 0:00:00] ...Qf4+ is the strong threat.} 37. Nd6+ {[%emt 0:02:02]} (37. Qxe6+ Kb8 38. Kc2 Qf4 $11) 37... Kb8 {[%emt 0:00:00]} 38. Qf8+ {[%emt 0:01:00]} (38. Qxe6 $2 Qxf2+ 39. Kd3 Rb3+ $19) 38... Ka7 {[%emt 0:00:51]} 39. Nxb5+ {[%emt 0:00:04]} cxb5 {[%emt 0:00:04] KQ-KQ} 40. Qc5+ {[%emt 0:00:38]} b6 {[%emt 0:01:29]} 41. Qe7+ {[%emt 0:30:45]} ({Worse is} 41. Qxb5 Qxf2+ 42. Kc1 Qf4+ 43. Kc2 Qf2+ 44. Kc3 Qf3+ 45. Kd2 Qf4+ 46. Kc2 Qf2+ 47. Kc3 Qf3+ 48. Kc2 Qf2+ $11) 41... Ka6 {[%emt 0:30:26]} 42. Ke3 {[%emt 0:00:00]} ({Less strong is} 42. Qxe6 Qxf2+ 43. Kd1 Qf1+ 44. Kd2 Qf2+ 45. Kd1 Qf1+ 46. Kd2 Qf2+ $11) 42... Qh3+ {[%emt 0:00:00]} 43. f3 {[%emt 0:00:00] Intending f7 and mate.} Qh4 {[%emt 0:00:00] Against f7} 44. Qe8 {[%emt 0:00:00][%cal Re8a8]} (44. Qxe6 {is a self mate.} Qe1+ 45. Kd3 Qxe6 46. Kd2 Qxf6 47. Ke3 Qf5 48. f4 Qe6+ 49. Kf2 Qb3 50. d5 Qxb2+ 51. Kg3 Qxa3+ 52. Kg2 Qd6 53. Kh3 a3 54. Kg4 a2 55. f5 a1=Q 56. fxg6 Qxg6+ 57. Kf4 Qd4+ 58. Kf3 Qgg4#) 44... Qg5+ {[%emt 0:00:00] [#]} 45. Kd3 $1 {[%emt 0:00:00][%cal Re8a8]} Qf5+ {[%emt 0:00:00]} 46. Ke2 {[%emt 0:00:00][%cal Re8a8]} Qc2+ {[%emt 0:00:00]} 47. Ke3 {[%emt 0:00:00][%cal Re8a8]} Qc1+ {[%emt 0:00:00] [#]} 48. Ke4 $1 {[%emt 0:00:00][%cal Re8a8]} Qe1+ {[%emt 0:00:00]} 49. Kf4 {[%emt 0:00:00][%cal Re8a8]} g5+ {[%emt 0:00:22]} 50. Kxg5 {[%emt 0:00:00][%cal Re8a8]} Qg3+ {[%emt 0:00:06]} 51. Kh6 {[%emt 0:00:00][%cal Re8a8]} Qxf3 {[%emt 0:00:06]} 52. Qg6 {[%emt 0:00:00] f7 would kill now.} Qf4+ {[%emt 0:01:18]} 53. Kh7 {[%emt 0:00:00] White wants to mate with f7.} Qh2+ {[%emt 0:00:40]} 54. Kg8 {[%emt 0:00:00] White mates.} Qb8+ {[%emt 0:03:08]} 55. Kg7 {[%emt 0:00:00]} Qf4 {[%emt 0:00:53]} 56. f7 {[%emt 0:00:00]} Qxd4+ {[%emt 0:00:04]} 57. Kg8 {[%emt 0:00:00] Weighted Error Value: White=0.23 (precise) /Black=0.49} 1-0

[Event "Israeli Championship 2022"]
[Site "Yosiah Arad"]
[Date "2022.12.12"]
[Round "8.3"]
[White "Levin, Guy"]
[Black "Kochavi, Ori"]
[Result "1/2-1/2"]
[ECO "D24"]
[WhiteElo "2382"]
[BlackElo "2326"]
[Annotator "TA"]
[PlyCount "34"]
[EventDate "2022.12.05"]
[EventType "swiss"]
[EventCountry "ISR"]
[SourceTitle "playchess.com"]
[Source "ChessBase"]
[SourceQuality "1"]
[TimeControl "40/5400+30:1800+30"]

{[%evp 9,24,27,57,35,38,38,33,38,50,44,44,19,37,44,72,50,72]} 1. d4 {[%emt 0:00:10]} Nf6 {[%emt 0:01:19]} 2. c4 {[%emt 0:00:06]} e6 {[%emt 0:00:04]} 3. Nc3 {[%emt 0:00:07]} d5 {[%emt 0:00:30]} 4. Nf3 {[%emt 0:01:21]} dxc4 {[%emt 0:01:30]} 5. e4 {[%emt 0:00:21][%cal Be2e4,Be4e5][%mdl 32]} b5 {[%emt 0:00:05]} 6. e5 {[%emt 0:00:13] Prevents a6. D24: Queen's Gambit Accepted: 3 Nf3 Nf6 4 Nc3.} Nd5 {[%emt 0:00:04]} 7. Nxb5 {[%emt 0:00:07]} Nb6 {[%emt 0:00:01]} 8. Be2 {[%emt 0:00:19]} Nc6 {[%emt 0:00:29]} 9. O-O {[%emt 0:07:11]} Bb7 {[%emt 0:00:47]} 10. Qd2 {[%emt 0:00:10]} Be7 {[%emt 0:00:15]} 11. Qf4 {[%emt 0:00:06]} Qd7 {[%emt 0:00:06][%cal Og7g5]} 12. Be3 {[%emt 0:00:08] White is more active.} g5 {[%emt 0:01:04] [#]   Weighted Error Value: White=0.07 (flawless) /Black=0.14 (very precise)} {Predecessor:} 13. Nxg5 $146 Bxg5 14. Qxg5 Ne7 15. Nxc7+ Qxc7 16. f3 Rg8 17. Qh5 Nf5 {0-1 (17) Korley,K (2468)-Shimanov,A (2614) Chicago 2019} 1/2-1/2

[Event "Israeli Championship 2022"]
[Site "Yosiah Arad"]
[Date "2022.12.12"]
[Round "8.4"]
[White "Dvoirys, Semen I."]
[Black "Bronstein, Or"]
[Result "1/2-1/2"]
[ECO "B93"]
[WhiteElo "2461"]
[BlackElo "2442"]
[Annotator "TA"]
[PlyCount "65"]
[EventDate "2022.12.05"]
[EventType "swiss"]
[EventCountry "ISR"]
[SourceTitle "playchess.com"]
[Source "ChessBase"]
[SourceQuality "1"]
[TimeControl "40/5400+30:1800+30"]

{[%evp 20,65,0,0,0,0,0,-20,0,0,0,-29,0,-9,23,0,58,64,52,59,50,44,62,41,56,0,85,102,95,100,97,93,90,87,122,22,23,23,26,28,24,0,0,0,0,0,0,-1]} 1. e4 {[%emt 0:00:05]} c5 {[%emt 0:00:30]} 2. Nf3 {[%emt 0:00:05]} d6 {[%emt 0:00:10]} 3. d4 {[%emt 0:00:09]} cxd4 {[%emt 0:00:12]} 4. Nxd4 {[%emt 0:00:05]} Nf6 {[%emt 0:00:05]} 5. Nc3 {[%emt 0:00:04]} a6 {[%emt 0:00:05]} 6. f4 {[%emt 0:01:19]} e5 {[%emt 0:00:28]} 7. Nf3 {[%emt 0:00:06]} Nbd7 {[%emt 0:00:22]} 8. a4 {[%emt 0:00:11]} Qc7 {[%emt 0:03:17]} 9. Bd3 {[%emt 0:00:12]} Be7 {[%emt 0:00:07]} 10. O-O {[%emt 0:00:51]} O-O {[%emt 0:00:03]} 11. Kh1 {[%emt 0:00:18]} Nc5 {[%emt 0:03:16] B93: Sicilian Najdorf: 6 f4.} 12. Qe1 {[%emt 0:00:37]} Re8 {[%emt 0:01:52]} 13. a5 {[%emt 0:03:37]} Bd7 {[%emt 0:18:49]} 14. fxe5 {[%emt 0:12:14]} dxe5 {[%emt 0:00:16]} 15. Qg3 {[%emt 0:00:08]} Rad8 {[%emt 0:18:26]} (15... Bc6 $5 {[%cal Rf6e4]}) 16. Be3 {[%emt 0:06:57] [#]} (16. Nxe5 $2 {perishes.} Nh5 17. Qf2 Qxe5 $19) 16... Be6 $146 {[%emt 0:15:16]} ({Predecessor:} 16... Bc8 17. Qxe5 Qxe5 18. Nxe5 Bf8 19. Bxc5 Bxc5 20. Nf3 Ng4 21. Nd1 g6 22. h3 Ne5 23. Nxe5 Rxe5 {0-1 (80) Orlando,E-Tsikunov,A ICCF email 2017}) 17. Qxe5 {[%emt 0:13:33]} (17. Nxe5 $2 {is the wrong capture.} Nh5 18. Qe1 Qxe5 $19) 17... Qc8 {[%emt 0:04:31]} ({Better is} 17... Qxe5 $11 18. Nxe5 Bb3) 18. Bd4 $14 {[%emt 0:03:30]} Bd6 {[%emt 0:06:43]} 19. Qg5 {[%emt 0:00:25]} h6 {[%emt 0:00:01]} 20. Qh4 {[%emt 0:00:31] [#] Hoping for e5.} Be7 {[%emt 0:00:13][%cal Of6e4]} 21. Qf2 {[%emt 0:10:26]} Ng4 {[%emt 0:04:34]} 22. Qe2 {[%emt 0:04:35]} (22. Qg1 $14) 22... Qc7 {[%emt 0:08:12] [#]} (22... Bf6 $1 $11 23. Bxf6 Nxf6) 23. e5 $1 $16 {[%emt 0:04:24]} Nxd3 {[%emt 0:03:30]} 24. cxd3 {[%emt 0:00:12] Strongly threatening Bb6.} Bc5 {[%emt 0:03:28] Prevents Bb6.} 25. Bxc5 {[%emt 0:01:50]} Qxc5 {[%emt 0:00:01]} 26. d4 {[%emt 0:09:48]} Qc4 {[%emt 0:00:17]} 27. Qd2 {[%emt 0:05:20]} ({White should play} 27. Qe1 $16) 27... f6 $1 $11 {[%emt 0:01:28]} 28. exf6 {[%emt 0:03:44]} Nxf6 {[%emt 0:00:01]} 29. h3 {[%emt 0:04:19]} Bf7 {[%emt 0:03:57]} 30. Qf4 {[%emt 0:00:27]} Bh5 {[%emt 0:02:12] The position is equal.} 31. Rf2 {[%emt 0:08:11]} Bxf3 {[%emt 0:03:38]} 32. Qxf3 {[%emt 0:00:19]} Qxd4 {[%emt 0:00:00]} 33. Rd1 {[%emt 0:03:02] Weighted Error Value: White=0.15 (very precise) /Black=0.17 (very precise)} 1/2-1/2

[Event "Israeli Championship 2022"]
[Site "Yosiah Arad"]
[Date "2022.12.12"]
[Round "8.5"]
[White "Zanan, Evgeny"]
[Black "Kobo, Ori"]
[Result "1/2-1/2"]
[ECO "E73"]
[WhiteElo "2485"]
[BlackElo "2554"]
[Annotator "TA"]
[PlyCount "109"]
[EventDate "2022.12.05"]
[EventType "swiss"]
[EventCountry "ISR"]
[SourceTitle "playchess.com"]
[Source "ChessBase"]
[SourceQuality "1"]
[TimeControl "40/5400+30:1800+30"]

{[%evp 10,109,35,48,42,0,5,0,20,0,18,0,0,0,-4,-61,-77,-59,-60,-77,-70,-78,-37,-45,-38,-37,0,0,-4,-39,-37,-31,-31,-35,-34,-29,144,107,188,0,39,0,223,198,192,157,87,85,100,24,25,0,47,40,100,15,152,155,151,108,123,58,72,41,84,0,219,0,0,0,0,0,0,0,0,0,0,-169,-138,-135,0,0,0,0,0,0,0,0,0,0,0,0,0,0,0,0,0,0,0,0,0,0]} 1. d4 {[%emt 0:08:10]} Nf6 {[%emt 0:00:12]} 2. c4 {[%emt 0:00:04]} g6 {[%emt 0:00:21]} 3. Nc3 {[%emt 0:00:05]} Bg7 {[%emt 0:00:15]} 4. e4 {[%emt 0:00:28]} d6 {[%emt 0:00:17]} 5. Be2 {[%emt 0:00:11]} O-O {[%emt 0:00:15]} 6. Be3 {[%emt 0:00:11]} a5 {[%emt 0:00:12] E73: King's Indian: Averbakh Variation without 6...c5.} 7. g4 {[%emt 0:06:17]} c5 {[%emt 0:00:37] [#]} 8. d5 $146 {[%emt 0:05:09]} ({Predecessor:} 8. g5 Ng4 9. Bxg4 Bxg4 10. Qxg4 cxd4 11. Bxd4 Bxd4 12. Nge2 Bg7 13. Rd1 a4 14. O-O {0-1 (51) Johnson,J (2178)-Risteski,E (2405) Chennai 2022}) 8... a4 {[%emt 0:04:44]} 9. a3 {[%emt 0:08:52]} e6 {[%emt 0:00:11]} 10. g5 {[%emt 0:01:47]} (10. Nxa4 $2 Qa5+ 11. Nc3 Nxe4 $19) 10... Ne8 {[%emt 0:02:13]} 11. h4 {[%emt 0:09:20]} (11. Nxa4 Qa5+ 12. Nc3 Bxc3+ 13. bxc3 Qxc3+ 14. Bd2 Qd4 $17) 11... exd5 {[%emt 0:00:12]} 12. exd5 {[%emt 0:00:20]} (12. cxd5 $11 Qe7 13. Qc2 (13. Nxa4 $2 Qxe4 14. Nf3 Qxa4 $19)) 12... Bxc3+ $15 {[%emt 0:00:09]} 13. bxc3 {[%emt 0:00:06]} Ng7 {[%emt 0:00:11]} 14. Bf4 {[%emt 0:12:54]} Qe7 {[%emt 0:05:40] Prevents h5.} 15. Nf3 {[%emt 0:07:31]} Re8 {[%emt 0:09:55]} 16. Kd2 $1 {[%emt 0:16:56]} Bf5 {[%emt 0:18:26]} 17. Re1 $1 {[%emt 0:03:10]} Qc7 {[%emt 0:02:45]} 18. Bd3 {[%emt 0:03:17]} Nd7 {[%emt 0:08:16][%cal Ob7b5]} 19. Bxf5 {[%emt 0:10:57] Active counter play!} Nxf5 {[%emt 0:01:55]} 20. Rb1 {[%emt 0:00:42]} Ne5 {[%emt 0:11:30]} 21. Nxe5 {[%emt 0:03:08]} dxe5 {[%emt 0:00:19]} 22. Bh2 {[%emt 0:00:24]} b5 $2 {[%emt 0:07:24]} (22... Nxh4 $11 23. Qe2 Ng2) 23. cxb5 $16 {[%emt 0:00:33]} (23. Rxb5 Nd6 24. Kc1 Nxb5 25. cxb5 Qa5 $19) 23... c4 {[%emt 0:00:52]} (23... Nxh4 $16 24. Kc1 Qd6) 24. Rb4 $2 {[%emt 0:00:59]} (24. b6 $18 Qd6 25. Kc2) 24... Qc5 {[%emt 0:02:13]} (24... Rad8 $5 {[%cal Rd8d5]} 25. Kc1 (25. Qxa4 $2 Qc5 $19) 25... Qc5 $14) 25. Kc1 {[%emt 0:00:17] Threatens to win with b6.} (25. Bxe5 $2 Qxd5+ 26. Kc2 Rxe5 $19) (25. Qe2 $5 {[%cal Re2c4]} Qxd5+ 26. Kc2 $11) 25... Qxf2 {[%emt 0:01:59]} (25... Rad8 $11) 26. Qd2 $18 {[%emt 0:01:00]} (26. Bxe5 $2 Rxe5 $1 {[%mdl 512]} 27. Rxe5 Qf4+ 28. Qd2 Qxe5 $19) 26... Qxh4 {[%emt 0:01:12]} 27. b6 $36 {[%emt 0:00:03][%mdl 2048] White is on the roll.} (27. Bxe5 Nd6 $1 28. Re2 Qh1+ 29. Qe1 Qxd5 30. Bxd6 Rxe2 31. Qxe2 Qxd6 $11) 27... f6 {[%emt 0:10:22]} 28. Bg1 {[%emt 0:00:01] Black must now prevent Bf2.} (28. b7 {feels hotter.} Rab8 29. Bg1 Nd6 30. Bc5) 28... Nd6 {[%emt 0:01:11]} 29. gxf6 {[%emt 0:01:12]} ({White should try} 29. b7 $16 Rab8 30. Bc5 (30. Rxa4 $2 Rxb7 31. Bf2 Qh3 $19)) 29... Qxf6 $11 {[%emt 0:00:38]} 30. Bc5 {[%emt 0:00:36]} (30. Qf2 {with more complications.} Qg5+ 31. Kb1 e4 32. Bh2) 30... Nb7 {[%emt 0:00:51]} (30... Ra5 $11 {was preferrable.} 31. b7 Rxc5) 31. Be3 $1 $14 {[%emt 0:00:03][%mdl 1024] White has compensation.} (31. Rxc4 $2 Rac8 32. d6 (32. Qe3 $2 Qf7 $19) 32... Nxc5 $19) 31... Qd6 {[%emt 0:01:02]} (31... Nd6 $1 $14) 32. Kb2 {[%emt 0:00:24]} (32. Rxc4 $2 Na5 $19) (32. Rd1 $16) 32... Rec8 {[%emt 0:03:42]} (32... Nc5 $11 {remains equal.} 33. Bxc5 (33. Rxc4 Qxb6+ 34. Rb4 Qd6 $11) 33... Qxc5) 33. Rd1 $16 {[%emt 0:00:47]} Rab8 {[%emt 0:01:01]} 34. Ka2 {[%emt 0:00:54]} (34. Rxa4 Nc5 35. Rxc4 Rxb6+ 36. Ka2 Rb7 $11) 34... Nc5 {[%emt 0:02:04] [#]} 35. Bxc5 {[%emt 0:00:37]} (35. Rxc4 $6 Qxb6 36. Rb4 Qd6 $11) (35. b7 $1 $16 {[%cal Rb7c8]} Rf8 36. Bxc5 (36. Rxc4 Nxb7 37. Rxa4 Qd7 $11) 36... Qxc5 37. d6 (37. Rxa4 $2 Rf2 $19)) 35... Rxc5 $14 {[%emt 0:00:18]} 36. b7 {[%emt 0:00:19]} (36. Rxa4 Rxb6 37. Rb4 Ra6 $17) 36... Kg7 {[%emt 0:01:19]} (36... Qd7 $2 37. d6 $18) 37. Qg5 {[%emt 0:00:38]} (37. Rxa4 $2 Rxb7 38. Qg2 Rd7 $19) (37. Rh1 Rc7 $14) (37. Rb2 $16) 37... h6 $2 {[%emt 0:01:44]} (37... Rxd5 $2 38. Rxd5 (38. Rh1 Rd2+ 39. Ka1 Kh8 $17) 38... Qxd5 39. Qe7+ Kh6 40. Rb2 $18 (40. Rxa4 $2 Qd2+ 41. Kb1 Qd1+ 42. Kb2 Qb3+ 43. Kc1 Qxc3+ 44. Kd1 Qf3+ 45. Ke1 Rxb7 $19)) (37... Rc7 $1 $11 {and Black stays safe.}) 38. Qg4 $2 {[%emt 0:01:08]} ({Better is} 38. Qe3 $18) 38... Rc7 $11 {[%emt 0:01:04]} 39. Rdb1 {[%emt 0:00:00] aiming for Rb6.} Qxd5 {[%emt 0:01:40] ...h5 is the strong threat.} 40. Rb6 {[%emt 0:00:11]} Qf7 {[%emt 0:00:38][%cal Rb8b7]} (40... Rc6 41. R6b5 Qf7 42. Qe2 $14 (42. Rxe5 Rxb7 43. Qd4 Rf6 $17)) 41. Rg1 {[%emt 0:05:11][%cal Rb6g6]} (41. Qg2 $5 Kh7 $8 42. Ka1 $11) 41... Qf2+ $1 {[%emt 0:01:04]} (41... Rbxb7 $2 42. Rxg6+ Kf8 43. Rg8+ Ke7 44. Rg7 Kd6 45. Rxf7 Rxf7 46. Qxc4 Rf2+ 47. Ka1 $18) 42. Rb2 {[%emt 0:02:55] Really sharp!} Qf6 {[%emt 0:01:13]} (42... Qf7 $5 43. Rb6 $8 Qf2+ 44. Rb2 Qf7 45. Rb6 $11) 43. Qe4 {[%emt 0:00:33] [#]} (43. Rgb1 $1 $11 {and White has nothing to worry.}) 43... Kh7 $1 $19 {[%emt 0:03:17]} 44. Rh1 {[%emt 0:03:08]} Qg7 {[%emt 0:10:30]} (44... Qf4 $17 45. Qg2 e4) 45. Rhb1 $11 {[%emt 0:01:08][%cal Bh1b1,Bb1b2,Bb2f2,Bf2f6][%mdl 32] The position is equal.} Qf7 {[%emt 0:02:09]} 46. Rb6 $1 {[%emt 0:02:46]} Re7 {[%emt 0:05:04]} 47. R1b2 {[%emt 0:02:04]} Kg7 {[%emt 0:03:20]} 48. Qc6 {[%emt 0:12:20] Hoping for Rg2.} Rc7 {[%emt 0:01:09]} 49. Qg2 {[%emt 0:01:27] And now Rf2 would win.} Kh7 {[%emt 0:03:03]} 50. Rf2 {[%emt 0:01:14]} Qe8 {[%emt 0:00:26]} 51. Rff6 {[%emt 0:00:54][%cal Rf6g6]} Rg7 {[%emt 0:00:11]} 52. Rbe6 {[%emt 0:01:58]} Qb5 {[%emt 0:01:01]} (52... Qd7 53. Rxg6 Qxb7 54. Rxg7+ Qxg7 55. Qe4+ Kh8 56. Rg6 $18) (52... Qg8 $5 53. Rb6 $8 (53. Rxe5 $2 Rgxb7 54. Re2 Qg7 $19) 53... Qe8 $14) 53. Rb6 {[%emt 0:00:52]} (53. Rxg6 Qb3+ 54. Ka1 Qxa3+ 55. Qa2 Qxc3+ 56. Qb2 Qxb2+ 57. Kxb2 Rxg6 58. Re7+ Rg7 59. Re6 Rbxb7+ 60. Kc3 Rg4 61. Kd2 a3 62. Rxe5 a2 63. Ra5 Rb3 64. Ke2 Rg2+ 65. Kf1 Rc2 66. Ra7+ Kg6 67. Ra6+ Kg5 68. Re6 Rf3+ 69. Kg1 a1=Q+) 53... Qe8 {[%emt 0:00:05]} 54. Rbe6 {[%emt 0:00:46]} Qg8 {[%emt 0:00:52]} ({Don't do} 54... Qd7 55. Rxg6 Qxb7 56. Rxg7+ Qxg7 57. Qe4+ Kh8 58. Qc6 $16) (54... Qb5 $5 55. Rb6 $8 (55. Rxg6 Qb3+ 56. Ka1 Qxa3+ 57. Qa2 Qxc3+ 58. Qb2 Qxb2+ 59. Kxb2 Rxg6 60. Re7+ Rg7 61. Rxe5 Rbxb7+ 62. Kc3 a3 63. Ra5 Ra7 64. Rf5 a2 65. Rf1 a1=Q+ 66. Rxa1 Rxa1 67. Kd4 Rd7+ 68. Ke5 Re1+ 69. Kf4 Rd3 70. Kg4 Kg6 71. Kf4 c3 72. Kg4 Re4#) 55... Qe8 $16) 55. Rb6 {[%emt 0:00:12] What a fight!   Weighted Error Value: White=0.28 (precise) /Black=0.30} (55. Rxe5 $2 {is the wrong capture.} Rgxb7 56. Re2 Qg7 $19) 1/2-1/2